[Event "*** Titled Tuesday 3|2 Blitz"]
[Site "Chess.com"]
[Date "2017.06.06"]
[Round "2"]
[White "Noukii"]
[Black "temiksmozg"]
[Result "0-1"]
[WhiteElo "2611"]
[BlackElo "2447"]
[TimeControl "180+2"]
[EndTime "14:13:18 PDT"]
[Termination "temiksmozg won by resignation"]

1. d4 {[%clk 0:02:56.3]} 1... f5 {[%clk 0:02:59]} 2. Nf3 {[%clk 0:02:50.4]} 2...
Nf6 {[%clk 0:02:57.8]} 3. Bg5 {[%clk 0:02:51.9]} 3... e6 {[%clk 0:02:56.5]} 4.
Nbd2 {[%clk 0:02:52.5]} 4... d5 {[%clk 0:02:48.5]} 5. e3 {[%clk 0:02:52.8]} 5...
h6 {[%clk 0:02:44]} 6. Bf4 {[%clk 0:02:51.2]} 6... Bd6 {[%clk 0:02:35.4]} 7. Ne5
{[%clk 0:02:51.5]} 7... O-O {[%clk 0:02:31.2]} 8. Bd3 {[%clk 0:02:47.4]} 8...
Bd7 {[%clk 0:02:29.5]} 9. Ng6 {[%clk 0:02:45.2]} 9... Re8 {[%clk 0:02:25.1]} 10.
Nf3 {[%clk 0:02:42.5]} 10... Nc6 {[%clk 0:02:21.4]} 11. O-O {[%clk 0:02:41.7]}
11... Ne7 {[%clk 0:02:17.2]} 12. Nxe7+ {[%clk 0:02:39.8]} 12... Qxe7 {[%clk
0:02:15.4]} 13. Ne5 {[%clk 0:02:41.3]} 13... Red8 {[%clk 0:02:11]} 14. f3 {[%clk
0:02:41.7]} 14... Be8 {[%clk 0:02:11.2]} 15. c3 {[%clk 0:02:41.6]} 15... Nh5
{[%clk 0:02:05.1]} 16. g4 {[%clk 0:02:40.3]} 16... Nxf4 {[%clk 0:02:00.1]} 17.
exf4 {[%clk 0:02:42.2]} 17... Bxe5 {[%clk 0:02:00.6]} 18. fxe5 {[%clk
0:02:37.1]} 18... f4 {[%clk 0:01:55.2]} 19. Qd2 {[%clk 0:02:35.9]} 19... g5
{[%clk 0:01:54.5]} 20. h4 {[%clk 0:02:36.8]} 20... Kg7 {[%clk 0:01:45.5]} 21.
Kg2 {[%clk 0:02:36]} 21... Bg6 {[%clk 0:01:42.9]} 22. Bxg6 {[%clk 0:02:34.8]}
22... Kxg6 {[%clk 0:01:44.8]} 23. Rh1 {[%clk 0:02:35.3]} 23... Rh8 {[%clk
0:01:46]} 24. Rh3 {[%clk 0:02:36.5]} 24... h5 {[%clk 0:01:43.8]} 25. Rah1 {[%clk
0:02:29.9]} 25... hxg4 {[%clk 0:01:39.9]} 26. h5+ {[%clk 0:02:28.9]} 26... Kh6
{[%clk 0:01:38]} 27. fxg4 {[%clk 0:02:28.1]} 27... Qh7 {[%clk 0:01:39.3]} 28.
Re1 {[%clk 0:02:26.6]} 28... b6 {[%clk 0:01:38]} 29. c4 {[%clk 0:02:15.8]} 29...
Rhd8 {[%clk 0:01:23.6]} 30. Rc1 {[%clk 0:02:09.9]} 30... Qe4+ {[%clk 0:01:19]}
31. Kf2 {[%clk 0:02:00.9]} 31... dxc4 {[%clk 0:01:17.4]} 32. Rxc4 {[%clk
0:02:02.2]} 32... Qxe5 {[%clk 0:01:17.6]} 33. Qc2 {[%clk 0:01:56.4]} 33... Qf6
{[%clk 0:01:06.1]} 34. Rd3 {[%clk 0:01:54.6]} 34... Rac8 {[%clk 0:00:52.2]} 35.
Rc6 {[%clk 0:01:44.2]} 35... Rxd4 {[%clk 0:00:40]} 36. Qc3 {[%clk 0:01:44.8]}
36... Rcd8 {[%clk 0:00:35.8]} 37. Rxc7 {[%clk 0:01:41.2]} 37... Qe5 {[%clk
0:00:29]} 38. Rxd4 {[%clk 0:00:58.2]} 38... Qxd4+ {[%clk 0:00:21.8]} 39. Qxd4
{[%clk 0:00:58.2]} 39... Rxd4 {[%clk 0:00:23.7]} 40. Re7 {[%clk 0:00:57.6]}
40... Re4 {[%clk 0:00:21.5]} 41. Rf7 {[%clk 0:00:58]} 41... Re5 {[%clk
0:00:16.4]} 42. Rxa7 {[%clk 0:00:41.9]} 42... Re3 {[%clk 0:00:17.5]} 43. Re7
{[%clk 0:00:40.7]} 43... Rg3 {[%clk 0:00:17.5]} 44. Rxe6+ {[%clk 0:00:41.9]}
44... Kh7 {[%clk 0:00:19]} 45. Rxb6 {[%clk 0:00:41.7]} 45... Rxg4 {[%clk
0:00:20.4]} 46. a4 {[%clk 0:00:43.2]} 46... Rh4 {[%clk 0:00:21.6]} 47. a5 {[%clk
0:00:43.6]} 47... g4 {[%clk 0:00:22.8]} 48. a6 {[%clk 0:00:43]} 48... Rxh5
{[%clk 0:00:21.3]} 49. b4 {[%clk 0:00:41]} 49... Rh2+ {[%clk 0:00:22.6]} 50. Ke1
{[%clk 0:00:39]} 50... Ra2 {[%clk 0:00:23.8]} 51. b5 {[%clk 0:00:40.4]} 51... g3
{[%clk 0:00:24.4]} 52. Rb7+ {[%clk 0:00:34.5]} 52... Kh6 {[%clk 0:00:25.2]} 53.
Rb8 {[%clk 0:00:35.2]} 53... g2 {[%clk 0:00:23.2]} 54. Rg8 {[%clk 0:00:35.6]}
54... f3 {[%clk 0:00:24.2]} 0-1

[Event "*** Titled Tuesday 3|2 Blitz"]
[Site "Chess.com"]
[Date "2017.06.06"]
[Round "2"]
[White "Ivan11Martic"]
[Black "GameOverBro"]
[Result "1-0"]
[WhiteElo "2399"]
[BlackElo "2240"]
[TimeControl "180+2"]
[EndTime "14:13:27 PDT"]
[Termination "Ivan11Martic won by resignation"]

1. d4 {[%clk 0:03:02]} 1... d6 {[%clk 0:02:59.8]} 2. e4 {[%clk 0:03:02.2]} 2...
Nf6 {[%clk 0:03:00.7]} 3. Nc3 {[%clk 0:03:03.2]} 3... e5 {[%clk 0:03:01.7]} 4.
Nf3 {[%clk 0:03:03.7]} 4... Nbd7 {[%clk 0:03:02]} 5. Bc4 {[%clk 0:03:04.6]} 5...
Be7 {[%clk 0:03:01.6]} 6. O-O {[%clk 0:03:05.4]} 6... O-O {[%clk 0:03:02.4]} 7.
a4 {[%clk 0:03:05]} 7... c6 {[%clk 0:03:02.7]} 8. Qe2 {[%clk 0:03:05.8]} 8... h6
{[%clk 0:02:54.4]} 9. Rd1 {[%clk 0:03:05.7]} 9... Qc7 {[%clk 0:02:54.8]} 10. h3
{[%clk 0:02:57.9]} 10... Re8 {[%clk 0:02:54.2]} 11. Be3 {[%clk 0:02:54.9]} 11...
Nf8 {[%clk 0:02:45.6]} 12. a5 {[%clk 0:02:44.4]} 12... Ng6 {[%clk 0:02:36.9]}
13. d5 {[%clk 0:02:43.8]} 13... Nh5 {[%clk 0:02:28.8]} 14. Kh2 {[%clk 0:02:36]}
14... Nhf4 {[%clk 0:02:26.7]} 15. Qf1 {[%clk 0:02:31.2]} 15... a6 {[%clk
0:02:22.8]} 16. Bb6 {[%clk 0:02:26.2]} 16... Qd7 {[%clk 0:02:17.1]} 17. b4
{[%clk 0:02:22.2]} 17... Kh8 {[%clk 0:02:00.2]} 18. Ng1 {[%clk 0:02:09.3]} 18...
Rf8 {[%clk 0:01:51.3]} 19. g3 {[%clk 0:02:08.9]} 19... Nh5 {[%clk 0:01:52]} 20.
Qe2 {[%clk 0:02:07.3]} 20... Nf6 {[%clk 0:01:50]} 21. Ra3 {[%clk 0:02:00.4]}
21... Nh7 {[%clk 0:01:48.7]} 22. Bd3 {[%clk 0:01:58.7]} 22... Ng5 {[%clk
0:01:47.5]} 23. Qh5 {[%clk 0:01:51.8]} 23... Qe8 {[%clk 0:01:42]} 24. h4 {[%clk
0:01:47.3]} 24... Nh7 {[%clk 0:01:38.7]} 25. Qe2 {[%clk 0:01:44.6]} 25... Nf6
{[%clk 0:01:28.7]} 26. f3 {[%clk 0:01:44.9]} 26... h5 {[%clk 0:01:28.9]} 27. Bc4
{[%clk 0:01:40.7]} 27... Bd7 {[%clk 0:01:28.2]} 28. Be3 {[%clk 0:01:40.3]} 28...
Rc8 {[%clk 0:01:26.4]} 29. Ba2 {[%clk 0:01:38.3]} 29... Nh7 {[%clk 0:01:18.5]}
30. dxc6 {[%clk 0:01:33.5]} 30... Bxc6 {[%clk 0:01:12.5]} 31. Nd5 {[%clk
0:01:32.8]} 31... Bd8 {[%clk 0:01:08.2]} 32. Rad3 {[%clk 0:01:30.2]} 32... f5
{[%clk 0:01:07.3]} 33. exf5 {[%clk 0:01:25.3]} 33... Rxf5 {[%clk 0:01:07.2]} 34.
c4 {[%clk 0:01:24.3]} 34... Qf8 {[%clk 0:00:55.2]} 35. Bc1 {[%clk 0:01:18.1]}
35... Nf6 {[%clk 0:00:52.3]} 36. Bg5 {[%clk 0:01:16.5]} 36... Nxd5 {[%clk
0:00:50.3]} 37. cxd5 {[%clk 0:01:18.4]} 37... Bb5 {[%clk 0:00:50.5]} 38. Bxd8
{[%clk 0:01:14.2]} 38... Qxd8 {[%clk 0:00:46.7]} 39. Bb1 {[%clk 0:01:13.7]}
39... Bxd3 {[%clk 0:00:41.4]} 40. Qxd3 {[%clk 0:01:15.6]} 40... Rf6 {[%clk
0:00:42.7]} 41. Nh3 {[%clk 0:01:15.5]} 41... Qc7 {[%clk 0:00:42.7]} 42. Rd2
{[%clk 0:01:05.5]} 42... Qc3 {[%clk 0:00:42.9]} 43. Rc2 {[%clk 0:01:06.5]} 43...
Qxc2+ {[%clk 0:00:06.9]} 44. Bxc2 {[%clk 0:01:06.5]} 44... e4 {[%clk 0:00:05.4]}
45. Qxe4 {[%clk 0:01:04.7]} 45... Kg8 {[%clk 0:00:05.3]} 46. Ng5 {[%clk
0:01:03.8]} 46... Rcf8 {[%clk 0:00:03.9]} 47. f4 {[%clk 0:01:03.8]} 47... Rc8
{[%clk 0:00:04.4]} 48. Ne6 {[%clk 0:01:02]} 48... Re8 {[%clk 0:00:03.9]} 49. Qe2
{[%clk 0:00:58.2]} 49... Nf8 {[%clk 0:00:04.6]} 50. Qxh5 {[%clk 0:00:57.7]}
50... Re7 {[%clk 0:00:04.2]} 51. f5 {[%clk 0:00:54.5]} 51... Nh7 {[%clk
0:00:04.1]} 52. Qe2 {[%clk 0:00:50.8]} 52... Rh6 {[%clk 0:00:05.4]} 53. Qc4
{[%clk 0:00:48.2]} 53... Nf6 {[%clk 0:00:05.6]} 54. Qc8+ {[%clk 0:00:48.6]}
54... Re8 {[%clk 0:00:07]} 55. Qxb7 {[%clk 0:00:48.7]} 55... Ng4+ {[%clk
0:00:07.5]} 56. Kh3 {[%clk 0:00:49.4]} 56... Nf2+ {[%clk 0:00:08]} 57. Kg2
{[%clk 0:00:50.3]} 57... Rhxe6 {[%clk 0:00:09.4]} 58. fxe6 {[%clk 0:00:49.3]}
58... Ng4 {[%clk 0:00:11.3]} 59. Qf7+ {[%clk 0:00:49.9]} 1-0

[Event "*** Titled Tuesday 3|2 Blitz"]
[Site "Chess.com"]
[Date "2017.06.06"]
[Round "2"]
[White "GMAkobianSTL"]
[Black "NTBT_DHS"]
[Result "0-1"]
[WhiteElo "2584"]
[BlackElo "2446"]
[TimeControl "180+2"]
[EndTime "14:13:29 PDT"]
[Termination "NTBT_DHS won by resignation"]

1. d4 {[%clk 0:02:56.4]} 1... Nf6 {[%clk 0:03:00.4]} 2. c4 {[%clk 0:02:48.6]}
2... g6 {[%clk 0:02:59.2]} 3. Nc3 {[%clk 0:02:45]} 3... Bg7 {[%clk 0:02:59.2]}
4. Nf3 {[%clk 0:02:42.3]} 4... d6 {[%clk 0:03:00.2]} 5. Bg5 {[%clk 0:02:42]}
5... O-O {[%clk 0:03:00.1]} 6. e3 {[%clk 0:02:42.2]} 6... c5 {[%clk 0:03:00.8]}
7. d5 {[%clk 0:02:41.5]} 7... h6 {[%clk 0:03:01.4]} 8. Bh4 {[%clk 0:02:40.8]}
8... a6 {[%clk 0:02:41.9]} 9. a4 {[%clk 0:02:40.3]} 9... Qa5 {[%clk 0:02:39.7]}
10. Bd3 {[%clk 0:02:38.5]} 10... g5 {[%clk 0:02:31.9]} 11. Bg3 {[%clk
0:02:38.2]} 11... Nh5 {[%clk 0:02:32]} 12. O-O {[%clk 0:02:35.2]} 12... Nxg3
{[%clk 0:02:32.7]} 13. hxg3 {[%clk 0:02:33.6]} 13... Bxc3 {[%clk 0:02:31.8]} 14.
bxc3 {[%clk 0:02:32.3]} 14... Qxc3 {[%clk 0:02:33.7]} 15. Rc1 {[%clk 0:02:21.7]}
15... Qf6 {[%clk 0:02:32.1]} 16. Nd2 {[%clk 0:02:18.8]} 16... Bf5 {[%clk
0:02:28]} 17. Bxf5 {[%clk 0:02:12.9]} 17... Qxf5 {[%clk 0:02:29.9]} 18. f4
{[%clk 0:01:40.9]} 18... Nd7 {[%clk 0:02:22]} 19. a5 {[%clk 0:01:36]} 19... Nf6
{[%clk 0:02:18.5]} 20. Qe2 {[%clk 0:01:28.2]} 20... Ne4 {[%clk 0:01:53.7]} 21.
g4 {[%clk 0:01:19.1]} 21... Qh7 {[%clk 0:01:52.7]} 22. Qd3 {[%clk 0:00:57.6]}
22... Nxd2 {[%clk 0:01:38.3]} 23. Qxd2 {[%clk 0:00:58.1]} 23... Qe4 {[%clk
0:01:34.6]} 24. Qc3 {[%clk 0:00:54.9]} 24... Rab8 {[%clk 0:01:31.7]} 25. Rb1
{[%clk 0:00:55.2]} 25... e6 {[%clk 0:01:29.1]} 26. Qf6 {[%clk 0:00:50.4]} 26...
exd5 {[%clk 0:01:22.7]} 27. Qxh6 {[%clk 0:00:48.2]} 27... f6 {[%clk 0:01:04.2]}
28. f5 {[%clk 0:00:28]} 28... Qxe3+ {[%clk 0:00:56.6]} 29. Rf2 {[%clk
0:00:26.8]} 29... Qe7 {[%clk 0:00:57.3]} 30. cxd5 {[%clk 0:00:25.8]} 30... Rfe8
{[%clk 0:00:48.1]} 31. Rf3 {[%clk 0:00:21.2]} 31... Qg7 {[%clk 0:00:44.9]} 32.
Qh5 {[%clk 0:00:20.7]} 32... Re5 {[%clk 0:00:43.3]} 33. Kh2 {[%clk 0:00:20]}
33... Qh7 {[%clk 0:00:40.2]} 34. Rb6 {[%clk 0:00:17.2]} 34... Rxd5 {[%clk
0:00:38.5]} 35. Re3 {[%clk 0:00:17]} 35... Qxh5+ {[%clk 0:00:38.3]} 36. gxh5
{[%clk 0:00:17.7]} 36... c4 {[%clk 0:00:37.3]} 37. Re7 {[%clk 0:00:15.9]} 37...
c3 {[%clk 0:00:33.5]} 38. Rc7 {[%clk 0:00:13.3]} 38... Rc5 {[%clk 0:00:24.1]}
39. Rxc5 {[%clk 0:00:12.7]} 39... dxc5 {[%clk 0:00:26]} 40. Rb3 {[%clk
0:00:13.4]} 40... Rc8 {[%clk 0:00:26.2]} 41. Rxc3 {[%clk 0:00:13.9]} 41... c4
{[%clk 0:00:28.1]} 42. g4 {[%clk 0:00:14.7]} 42... Kf7 {[%clk 0:00:27.4]} 43.
Kg3 {[%clk 0:00:15.8]} 43... Ke7 {[%clk 0:00:29]} 44. Kf3 {[%clk 0:00:17]} 44...
Kd6 {[%clk 0:00:30.6]} 45. Ke4 {[%clk 0:00:17.6]} 45... Kc5 {[%clk 0:00:32.1]}
46. h6 {[%clk 0:00:18.5]} 46... Re8+ {[%clk 0:00:33]} 47. Kf3 {[%clk 0:00:16.5]}
47... Rh8 {[%clk 0:00:34.9]} 48. Re3 {[%clk 0:00:16.1]} 48... Rxh6 {[%clk
0:00:35.8]} 49. Re7 {[%clk 0:00:17.3]} 49... Kc6 {[%clk 0:00:34.7]} 50. Ke4
{[%clk 0:00:17.2]} 50... Rh4 {[%clk 0:00:35.9]} 51. Re6+ {[%clk 0:00:17.6]}
51... Kc5 {[%clk 0:00:37.4]} 52. Rxf6 {[%clk 0:00:18.8]} 52... Rxg4+ {[%clk
0:00:39]} 53. Ke5 {[%clk 0:00:15]} 53... c3 {[%clk 0:00:38.6]} 54. Rf8 {[%clk
0:00:15.9]} 54... Kb4 {[%clk 0:00:39.5]} 55. Rc8 {[%clk 0:00:15.4]} 55... Rc4
{[%clk 0:00:38.7]} 56. Rxc4+ {[%clk 0:00:15.3]} 56... Kxc4 {[%clk 0:00:40.6]}
57. f6 {[%clk 0:00:14.7]} 57... c2 {[%clk 0:00:42.1]} 58. f7 {[%clk 0:00:15.9]}
58... c1=Q {[%clk 0:00:44]} 59. f8=Q {[%clk 0:00:17.1]} 59... Qf4+ {[%clk
0:00:45.7]} 60. Qxf4+ {[%clk 0:00:17.1]} 60... gxf4 {[%clk 0:00:47.6]} 61. Kxf4
{[%clk 0:00:18.1]} 61... Kb5 {[%clk 0:00:49.5]} 62. Ke5 {[%clk 0:00:11.7]} 62...
Kxa5 {[%clk 0:00:51.4]} 0-1

[Event "*** Titled Tuesday 3|2 Blitz"]
[Site "Chess.com"]
[Date "2017.06.06"]
[Round "2"]
[White "joppie2"]
[Black "amurdercastle"]
[Result "1-0"]
[WhiteElo "2623"]
[BlackElo "2283"]
[TimeControl "180+2"]
[EndTime "14:13:37 PDT"]
[Termination "joppie2 won by resignation"]

1. e4 {[%clk 0:03:02]} 1... c6 {[%clk 0:03:00.9]} 2. d4 {[%clk 0:03:01.8]} 2...
d5 {[%clk 0:03:01.5]} 3. Nc3 {[%clk 0:03:02.2]} 3... dxe4 {[%clk 0:03:02.6]} 4.
Nxe4 {[%clk 0:03:04.1]} 4... Bf5 {[%clk 0:03:04]} 5. Ng3 {[%clk 0:03:02.8]} 5...
Bg6 {[%clk 0:03:04.9]} 6. h4 {[%clk 0:03:04.3]} 6... h6 {[%clk 0:03:05.6]} 7.
Nf3 {[%clk 0:03:06.2]} 7... e6 {[%clk 0:03:06.5]} 8. Ne5 {[%clk 0:03:07.8]} 8...
Bh7 {[%clk 0:03:07.3]} 9. Bd3 {[%clk 0:03:09.5]} 9... Bxd3 {[%clk 0:03:07.4]}
10. Qxd3 {[%clk 0:03:11.4]} 10... Nd7 {[%clk 0:03:03.3]} 11. f4 {[%clk
0:03:09.7]} 11... Be7 {[%clk 0:03:02.8]} 12. Bd2 {[%clk 0:03:07.8]} 12... Bxh4
{[%clk 0:03:03.1]} 13. O-O-O {[%clk 0:03:08.1]} 13... Nxe5 {[%clk 0:03:04]} 14.
fxe5 {[%clk 0:03:09.6]} 14... Bxg3 {[%clk 0:03:04.9]} 15. Qxg3 {[%clk
0:03:11.3]} 15... Ne7 {[%clk 0:03:05.1]} 16. Bb4 {[%clk 0:03:12.9]} 16... Nf5
{[%clk 0:02:55.1]} 17. Qb3 {[%clk 0:03:10.5]} 17... a5 {[%clk 0:02:32.1]} 18.
Bc5 {[%clk 0:03:09.8]} 18... b5 {[%clk 0:02:33.2]} 19. g4 {[%clk 0:03:09.4]}
19... Ne7 {[%clk 0:02:30.9]} 20. Kb1 {[%clk 0:03:09.8]} 20... Nd5 {[%clk
0:02:30.5]} 21. Qf3 {[%clk 0:03:08.2]} 21... Qg5 {[%clk 0:02:13.1]} 22. Rdf1
{[%clk 0:03:05.3]} 22... Qg6 {[%clk 0:02:13.7]} 23. Bd6 {[%clk 0:03:03]} 23...
Ra7 {[%clk 0:02:10]} 24. Rh2 {[%clk 0:02:59.9]} 24... Rd7 {[%clk 0:01:57.5]} 25.
Bc5 {[%clk 0:02:56]} 25... f6 {[%clk 0:01:45]} 26. Qe2 {[%clk 0:02:39.1]} 26...
Kf7 {[%clk 0:01:36.1]} 27. g5 {[%clk 0:02:34.4]} 27... f5 {[%clk 0:01:33.3]} 28.
gxh6 {[%clk 0:02:34.8]} 28... Rxh6 {[%clk 0:01:30.5]} 29. Rg2 {[%clk 0:02:36.3]}
29... Qh7 {[%clk 0:01:31.5]} 30. a3 {[%clk 0:02:29.5]} 30... Rh1 {[%clk
0:01:23.7]} 31. Rxg7+ {[%clk 0:02:29.1]} 31... Kxg7 {[%clk 0:01:13.2]} 32. Qg2+
{[%clk 0:02:29.5]} 32... Kf7 {[%clk 0:01:07.8]} 33. Rxh1 {[%clk 0:02:29.7]}
33... Qg7 {[%clk 0:01:09.2]} 34. Qf3 {[%clk 0:02:28.8]} 34... Ke8 {[%clk
0:01:05.3]} 35. Bd6 {[%clk 0:02:22.9]} 35... Kd8 {[%clk 0:00:55.5]} 36. Qg3
{[%clk 0:02:06.8]} 36... Kc8 {[%clk 0:00:41.8]} 37. Qe1 {[%clk 0:02:07.6]} 37...
Ra7 {[%clk 0:00:33.8]} 38. Rg1 {[%clk 0:02:07.2]} 38... Qf7 {[%clk 0:00:33.9]}
39. Qh4 {[%clk 0:02:07.1]} 39... Kb7 {[%clk 0:00:28]} 40. Qd8 {[%clk 0:01:53.8]}
40... Ra8 {[%clk 0:00:21.3]} 41. Qg5 {[%clk 0:01:48]} 41... Ka6 {[%clk
0:00:21.4]} 42. Qh6 {[%clk 0:01:48.7]} 42... Ra7 {[%clk 0:00:21.7]} 43. Qh8
{[%clk 0:01:49.2]} 43... b4 {[%clk 0:00:21.7]} 44. a4 {[%clk 0:01:46.2]} 44...
Qd7 {[%clk 0:00:19.2]} 45. Bc5 {[%clk 0:01:46.7]} 45... Nb6 {[%clk 0:00:19.8]}
46. Rg8 {[%clk 0:01:44.7]} 46... Rb7 {[%clk 0:00:19.9]} 47. Rd8 {[%clk
0:01:37.7]} 47... Qc7 {[%clk 0:00:20]} 48. Qf8 {[%clk 0:01:30]} 48... Nxa4
{[%clk 0:00:20.2]} 49. Ra8+ {[%clk 0:01:29.8]} 49... Kb5 {[%clk 0:00:21.3]} 50.
c4+ {[%clk 0:01:15.5]} 50... bxc3 {[%clk 0:00:21.5]} 51. b3 {[%clk 0:01:17.1]}
51... Nb6 {[%clk 0:00:21.2]} 52. Qg8 {[%clk 0:00:54]} 52... Qg7 {[%clk
0:00:21.2]} 53. Qxg7 {[%clk 0:00:46.4]} 53... Rxg7 {[%clk 0:00:20.6]} 54. Rb8
{[%clk 0:00:48.3]} 54... Ka6 {[%clk 0:00:13.5]} 55. Rxb6+ {[%clk 0:00:49]} 55...
Ka7 {[%clk 0:00:15.4]} 56. Rxc6+ {[%clk 0:00:50.3]} 56... Kb7 {[%clk 0:00:17.3]}
57. Rb6+ {[%clk 0:00:50.3]} 57... Kc7 {[%clk 0:00:17.8]} 58. Rxe6 {[%clk
0:00:52.2]} 58... Rg2 {[%clk 0:00:18.6]} 59. Rf6 {[%clk 0:00:51.5]} 59... Rf2
{[%clk 0:00:20]} 60. d5 {[%clk 0:00:51.7]} 60... Re2 {[%clk 0:00:19.8]} 61. Rf7+
{[%clk 0:00:52.6]} 61... Kd8 {[%clk 0:00:20.6]} 62. Rf8+ {[%clk 0:00:54]} 62...
Kd7 {[%clk 0:00:21.3]} 63. Rf7+ {[%clk 0:00:55.9]} 63... Ke8 {[%clk 0:00:22.3]}
64. e6 {[%clk 0:00:57.2]} 64... Kd8 {[%clk 0:00:21.8]} 65. e7+ {[%clk
0:00:52.9]} 65... Kd7 {[%clk 0:00:21.8]} 66. Rf8 {[%clk 0:00:54.5]} 66... f4
{[%clk 0:00:22.2]} 67. Rd8+ {[%clk 0:00:55.6]} 67... Kc7 {[%clk 0:00:22.9]} 68.
e8=Q {[%clk 0:00:56.2]} 1-0

[Event "*** Titled Tuesday 3|2 Blitz"]
[Site "Chess.com"]
[Date "2017.06.06"]
[Round "2"]
[White "Vice64"]
[Black "chessking2151"]
[Result "0-1"]
[WhiteElo "2321"]
[BlackElo "2339"]
[TimeControl "180+2"]
[EndTime "14:13:43 PDT"]
[Termination "chessking2151 won on time"]

1. Nf3 {[%clk 0:02:58.5]} 1... Nf6 {[%clk 0:02:58.3]} 2. g3 {[%clk 0:02:59.3]}
2... b6 {[%clk 0:02:56.6]} 3. Bg2 {[%clk 0:02:59.8]} 3... Bb7 {[%clk 0:02:50.7]}
4. O-O {[%clk 0:02:59.8]} 4... e6 {[%clk 0:02:43.5]} 5. d3 {[%clk 0:02:54.1]}
5... c5 {[%clk 0:02:27.2]} 6. e4 {[%clk 0:02:54.1]} 6... d5 {[%clk 0:02:26.7]}
7. e5 {[%clk 0:02:52.7]} 7... Nfd7 {[%clk 0:02:26.3]} 8. Re1 {[%clk 0:02:53.5]}
8... Qc7 {[%clk 0:02:26]} 9. Nbd2 {[%clk 0:02:52.8]} 9... Nc6 {[%clk 0:02:26.4]}
10. Qe2 {[%clk 0:02:52]} 10... h6 {[%clk 0:02:20.2]} 11. c4 {[%clk 0:02:47.8]}
11... Nb4 {[%clk 0:02:13.9]} 12. Nf1 {[%clk 0:02:42.7]} 12... dxc4 {[%clk
0:02:11.6]} 13. dxc4 {[%clk 0:02:42.9]} 13... g5 {[%clk 0:01:42.7]} 14. h4
{[%clk 0:02:37.2]} 14... g4 {[%clk 0:01:33.2]} 15. N3h2 {[%clk 0:02:34.6]} 15...
h5 {[%clk 0:01:31.2]} 16. Bxb7 {[%clk 0:02:26.3]} 16... Qxb7 {[%clk 0:01:30.9]}
17. f4 {[%clk 0:02:18]} 17... O-O-O {[%clk 0:01:28.3]} 18. Be3 {[%clk
0:02:10.3]} 18... Qe4 {[%clk 0:01:09.9]} 19. Nd2 {[%clk 0:01:53.3]} 19... Qf5
{[%clk 0:00:56.4]} 20. Qg2 {[%clk 0:01:48]} 20... Kc7 {[%clk 0:00:51.2]} 21. Ne4
{[%clk 0:01:47.8]} 21... Be7 {[%clk 0:00:39.2]} 22. Red1 {[%clk 0:01:41.3]}
22... Nb8 {[%clk 0:00:32.9]} 23. a3 {[%clk 0:01:40.8]} 23... N4c6 {[%clk
0:00:29]} 24. Nf1 {[%clk 0:01:40.5]} 24... Rxd1 {[%clk 0:00:24]} 25. Rxd1 {[%clk
0:01:40.2]} 25... Rd8 {[%clk 0:00:25.2]} 26. Rxd8 {[%clk 0:01:33.4]} 26... Nxd8
{[%clk 0:00:15.6]} 27. Bd2 {[%clk 0:01:29.9]} 27... Qh7 {[%clk 0:00:14.1]} 28.
Ne3 {[%clk 0:01:29]} 28... Ndc6 {[%clk 0:00:14.7]} 29. Bc3 {[%clk 0:01:28.4]}
29... Qg8 {[%clk 0:00:15.4]} 30. Ng5 {[%clk 0:01:22]} 30... Bxg5 {[%clk
0:00:13.9]} 31. hxg5 {[%clk 0:01:20.3]} 31... Qg6 {[%clk 0:00:14.6]} 32. Qc2
{[%clk 0:01:16]} 32... Ne7 {[%clk 0:00:14.2]} 33. Kf2 {[%clk 0:00:58.7]} 33...
Nbc6 {[%clk 0:00:12.6]} 34. Qd2 {[%clk 0:00:57.9]} 34... Qe4 {[%clk 0:00:07.3]}
35. Kg1 {[%clk 0:00:51.8]} 35... Qf3 {[%clk 0:00:07.5]} 36. Qf2 {[%clk
0:00:50.2]} 36... Qe4 {[%clk 0:00:08.2]} 37. Qd2 {[%clk 0:00:39.2]} 37... Nd4
{[%clk 0:00:08.8]} 38. Bxd4 {[%clk 0:00:36.7]} 38... cxd4 {[%clk 0:00:09.7]} 39.
Nf1 {[%clk 0:00:31.8]} 39... Nf5 {[%clk 0:00:10.4]} 40. c5 {[%clk 0:00:25.4]}
40... h4 {[%clk 0:00:09.3]} 41. cxb6+ {[%clk 0:00:24.9]} 41... axb6 {[%clk
0:00:10]} 42. Qg2 {[%clk 0:00:15.1]} 42... Qxg2+ {[%clk 0:00:08.9]} 43. Kxg2
{[%clk 0:00:15.2]} 43... h3+ {[%clk 0:00:04.8]} 44. Kf2 {[%clk 0:00:15.5]} 44...
d3 {[%clk 0:00:03.5]} 45. Ke1 {[%clk 0:00:09]} 45... Kc6 {[%clk 0:00:04.1]} 46.
Kd2 {[%clk 0:00:09.3]} 46... Kd5 {[%clk 0:00:05.5]} 47. Kxd3 {[%clk 0:00:07]}
47... Nd4 {[%clk 0:00:07]} 48. Ke3 {[%clk 0:00:02]} 48... Kc5 {[%clk 0:00:08.9]}
49. Kf2 {[%clk 0:00:03.1]} 49... Nf3 {[%clk 0:00:09.8]} 50. Ne3 {[%clk
0:00:03.7]} 50... h2 {[%clk 0:00:10.4]} 51. Kg2 {[%clk 0:00:04.2]} 51... Kd4
{[%clk 0:00:11.5]} 52. Nxg4 {[%clk 0:00:04.3]} 52... Ke4 {[%clk 0:00:12.9]} 53.
Nxh2 {[%clk 0:00:04.5]} 53... Ne1+ {[%clk 0:00:14.2]} 54. Kf2 {[%clk 0:00:04.1]}
54... Nd3+ {[%clk 0:00:16.1]} 55. Ke2 {[%clk 0:00:02.7]} 55... Nxb2 {[%clk
0:00:18]} 0-1